fUSD/lending_fUSD_20250204
["ID","MTS","AMOUNT","RATE_DAILY","PERIOD"]
[351641814,1738681851431,-562.23,9.612e-05,2]
[351641815,1738681851441,-500.0,9.612e-05,2]
[351641816,1738681851453,-500.0,9.612e-05,2]
[351641817,1738681851463,-895.84,9.612e-05,2]
[351641818,1738681851473,-500.0,9.612e-05,2]
[351641819,1738681851482,-500.0,9.612e-05,2]
[351641820,1738681851491,-500.0,9.612e-05,2]
[351641821,1738681851501,-500.0,9.612e-05,2]
[351641822,1738681851510,-500.0,9.612e-05,2]
[351641823,1738681851520,-369.40575271,9.612e-05,2]
[351641824,1738681851529,-500.0,9.612e-05,2]
[351641825,1738681851538,-500.0,9.612e-05,2]
[351641826,1738681851549,-500.0,9.612e-05,2]
[351641827,1738681851558,-500.0,9.612e-05,2]
[351641828,1738681851568,-949.78,9.612e-05,2]
[351641829,1738681851577,-500.0,9.612e-05,2]
[351641830,1738681851586,-500.0,9.612e-05,2]
[351641831,1738681851595,-500.0,9.612e-05,2]
[351641832,1738681851605,-500.0,9.612e-05,2]
[351641833,1738681851614,-500.0,9.612e-05,2]
[351641834,1738681851625,-500.0,9.612e-05,2]
[351641835,1738681851635,-500.0,9.612e-05,2]
[351641836,1738681851645,-500.0,9.612e-05,2]
[351641837,1738681851655,-500.0,9.612e-05,2]
[351641838,1738681851666,-500.0,9.612e-05,2]
[351641839,1738681851675,-500.0,9.612e-05,2]
[351641840,1738681851684,-500.0,9.612e-05,2]
[351641841,1738681851693,-772.59,9.612e-05,2]
[351641842,1738681851704,-573.81149476,9.612e-05,2]
[351641843,1738681851714,-500.0,9.612e-05,2]
[351641844,1738681851723,-500.0,9.612e-05,2]
[351641845,1738681851733,-500.0,9.612e-05,2]
[351641846,1738681851743,-500.0,9.612e-05,2]
[351641847,1738681851753,-500.0,9.612e-05,2]
[351641848,1738681851763,-500.0,9.612e-05,2]
[351641849,1738681851772,-500.0,9.612e-05,2]
[351641850,1738681851782,-500.0,9.612e-05,2]
[351641851,1738681851791,-500.0,9.612e-05,2]
[351641852,1738681851801,-500.0,9.612e-05,2]
[351641853,1738681851811,-611.69,9.612e-05,2]
[351641854,1738681851820,-500.0,9.612e-05,2]
[351641855,1738681851829,-500.0,9.612e-05,2]
[351641856,1738681851838,-500.0,9.612e-05,2]
[351641857,1738681851847,-500.0,9.612e-05,2]
[351641858,1738681851856,-500.0,9.612e-05,2]
[351641859,1738681851865,-500.0,9.612e-05,2]
[351641860,1738681851875,-500.0,9.612e-05,2]
[351641861,1738681851884,-732.68,9.612e-05,2]
[351641862,1738681851893,-500.0,9.612e-05,2]
[351641863,1738681851903,-500.0,9.612e-05,2]
[351641864,1738681851912,-500.0,9.612e-05,2]
[351641865,1738681851922,-500.0,9.612e-05,2]
[351641866,1738681851931,-500.0,9.612e-05,2]
[351641867,1738681851940,-500.0,9.612e-05,2]
[351641868,1738681851954,-500.0,9.612e-05,2]
[351641869,1738681851963,-500.0,9.612e-05,2]
[351641870,1738681851973,-706.05,9.612e-05,2]
[351641871,1738681851983,-500.0,9.612e-05,2]
[351641872,1738681851992,-500.0,9.612e-05,2]
[351641873,1738681852001,-500.0,9.612e-05,2]
[351641874,1738681852011,-500.0,9.612e-05,2]
[351641875,1738681852020,-500.0,9.612e-05,2]
[351641876,1738681852030,-218.69297365,9.612e-05,2]
[351641877,1738681852039,-500.0,9.612e-05,2]
[351641878,1738681852049,-500.0,9.612e-05,2]
[351641879,1738681852058,-509.08881116,9.612e-05,2]
[351641880,1738681852068,-500.0,9.612e-05,2]
[351641881,1738681852077,-500.0,9.612e-05,2]
[351641882,1738681852086,-500.0,9.612e-05,2]
[351641883,1738681852096,-500.0,9.612e-05,2]
[351641884,1738681852106,-500.0,9.612e-05,2]
[351641885,1738681852116,-500.0,9.612e-05,2]
[351641886,1738681852126,-500.0,9.612e-05,2]
[351641887,1738681852136,-500.0,9.612e-05,2]
[351641888,1738681852145,-758.53,9.612e-05,2]
[351641889,1738681852155,-500.0,9.612e-05,2]
[351641890,1738681852164,-500.0,9.612e-05,2]
[351641891,1738681852174,-500.0,9.612e-05,2]
[351641892,1738681852183,-500.0,9.612e-05,2]
[351641893,1738681852192,-500.0,9.612e-05,2]
[351641894,1738681852208,-500.0,9.612e-05,2]
[351641895,1738681852218,-500.0,9.612e-05,2]
[351641896,1738681852227,-500.0,9.612e-05,2]
[351641897,1738681852236,-500.0,9.612e-05,2]
[351641898,1738681852246,-645.09,9.612e-05,2]
[351641899,1738681852255,-500.0,9.612e-05,2]
[351641900,1738681852264,-500.0,9.612e-05,2]
[351641901,1738681852273,-500.0,9.612e-05,2]
[351641902,1738681852283,-500.0,9.612e-05,2]
[351641903,1738681852292,-567.2162846,9.612e-05,2]
[351641904,1738681852302,-500.0,9.612e-05,2]
[351641905,1738681852311,-500.0,9.612e-05,2]
[351641906,1738681852321,-620.64,9.612e-05,2]
[351641907,1738681852330,-500.0,9.612e-05,2]
[351641908,1738681852339,-500.0,9.612e-05,2]
[351641909,1738681852348,-500.0,9.612e-05,2]
[351641910,1738681852357,-516.45,9.612e-05,2]
[351641911,1738681852367,-500.0,9.612e-05,2]
[351641912,1738681852380,-485.36,9.612e-05,2]
[351641913,1738681852390,-809.96,9.612e-05,2]
[351641914,1738681852399,-500.0,9.612e-05,2]
[351641915,1738681852408,-181.71,9.614e-05,2]
[351641916,1738681852418,-180.394776,9.695e-05,2]
[351641917,1738681852428,-173.063333,9.695e-05,2]
[351641918,1738681852437,-150.0,9.7e-05,2]
[351641919,1738681852452,-438.55,9.745e-05,2]
[351641920,1738681852463,-300.0,9.745e-05,2]
[351641921,1738681852472,-150.0,9.745e-05,2]
[351641922,1738681852482,-438.55,9.745e-05,2]
[351641923,1738681852491,-150.0,9.745e-05,2]
[351641924,1738681852501,-434.75,9.745e-05,2]
[351641925,1738681852511,-150.0,9.745e-05,2]
[351641926,1738681852521,-500.0,9.748e-05,2]
[351641927,1738681852531,-672.6,9.748e-05,2]
[351641928,1738681852540,-1703.6,9.748e-05,2]
[351641929,1738681852550,-500.0,9.748e-05,2]
[351641930,1738681852559,-500.0,9.748e-05,2]
[351641931,1738681852568,-323.862904,9.748e-05,2]
[351641932,1738681852579,-500.0,9.748e-05,2]
[351641933,1738681852588,-500.0,9.748e-05,2]
[351641934,1738681852597,-500.0,9.748e-05,2]
[351641935,1738681852607,-339.60882,9.748e-05,2]
[351641936,1738681852616,-500.0,9.748e-05,2]
[351641937,1738681852626,-500.0,9.748e-05,2]
[351641938,1738681852635,-500.0,9.748e-05,2]
[351641939,1738681852643,-500.0,9.748e-05,2]
[351641940,1738681852654,-943.58,9.748e-05,2]
[351641941,1738681852663,-500.0,9.748e-05,2]
[351641942,1738681852673,-675.92,9.748e-05,2]
[351641943,1738681852683,-605.13,9.748e-05,2]
[351641944,1738681852694,-645.13,9.748e-05,2]
[351641945,1738681852706,-500.0,9.748e-05,2]
[351641946,1738681852715,-500.0,9.748e-05,2]
[351641947,1738681852724,-500.0,9.748e-05,2]
[351641948,1738681852733,-500.0,9.748e-05,2]
[351641949,1738681852742,-500.0,9.748e-05,2]
[351641950,1738681852752,-500.0,9.748e-05,2]
[351641951,1738681852762,-500.0,9.748e-05,2]
[351641952,1738681852771,-536.87,9.748e-05,2]
[351641953,1738681852781,-2473.72,9.748e-05,2]
[351641954,1738681852791,-500.0,9.748e-05,2]
[351641955,1738681852800,-940.54,9.748e-05,2]
[351641956,1738681852810,-632.63,9.748e-05,2]
[351641957,1738681852819,-1150.35,9.748e-05,2]
[351641958,1738681852830,-515.85,9.748e-05,2]
[351641959,1738681852840,-784.68,9.748e-05,2]
[351641960,1738681852850,-1000.0,9.748e-05,2]
[351641961,1738681852859,-586.47,9.748e-05,2]
[351641962,1738681852867,-688.2,9.748e-05,2]
[351641963,1738681852877,-801.95,9.748e-05,2]
[351641964,1738681852887,-688.16,9.748e-05,2]
[351641965,1738681852896,-297.77,9.748e-05,2]
[351641966,1738681852906,-500.0,9.748e-05,2]
[351641967,1738681852915,-1224.1,9.748e-05,2]
[351641968,1738681852925,-608.38,9.748e-05,2]
[351641969,1738681852935,-500.0,9.748e-05,2]
[351641970,1738681852945,-599.69,9.748e-05,2]
[351641971,1738681852958,-500.0,9.748e-05,2]
[351641972,1738681852967,-500.0,9.748e-05,2]
[351641973,1738681852977,-569.86,9.748e-05,2]
[351641974,1738681852986,-542.26,9.748e-05,2]
[351641975,1738681852995,-674.0,9.748e-05,2]
[351641976,1738681853005,-613.5,9.748e-05,2]
[351641977,1738681853015,-1030.22,9.748e-05,2]
[351641978,1738681853025,-573.04,9.748e-05,2]
[351641979,1738681853034,-500.0,9.748e-05,2]
[351641980,1738681853044,-735.78,9.748e-05,2]
[351641981,1738681853054,-739.56,9.748e-05,2]
[351641982,1738681853064,-644.47,9.748e-05,2]
[351641983,1738681853075,-579.06,9.748e-05,2]
[351641984,1738681853085,-1310.79,9.748e-05,2]
[351641985,1738681853095,-777.78,9.748e-05,2]
[351641986,1738681853104,-500.0,9.748e-05,2]
[351641987,1738681853113,-634.79,9.748e-05,2]
[351641988,1738681853123,-806.52,9.748e-05,2]
[351641989,1738681853133,-500.0,9.748e-05,2]
[351641990,1738681853143,-500.0,9.748e-05,2]
[351641991,1738681853152,-500.0,9.748e-05,2]
[351641992,1738681853161,-500.0,9.748e-05,2]
[351641993,1738681853171,-500.0,9.748e-05,2]
[351641994,1738681853180,-875.06,9.748e-05,2]
[351641995,1738681853190,-500.0,9.748e-05,2]
[351641996,1738681853201,-500.0,9.748e-05,2]
[351641997,1738681853210,-500.0,9.748e-05,2]
[351641998,1738681853219,-547.13,9.748e-05,2]
[351641999,1738681853228,-500.0,9.748e-05,2]
[351642000,1738681853237,-520.0,9.748e-05,2]
[351642001,1738681853246,-500.0,9.748e-05,2]
[351642002,1738681853256,-500.0,9.748e-05,2]
[351642003,1738681853266,-500.0,9.748e-05,2]
[351642004,1738681853276,-500.0,9.748e-05,2]
[351642005,1738681853286,-1084.26,9.748e-05,2]
[351642006,1738681853296,-500.0,9.748e-05,2]
[351642007,1738681853306,-632.46,9.748e-05,2]
[351642008,1738681853315,-500.0,9.749e-05,2]
[351642009,1738681853324,-500.0,9.749e-05,2]
[351642010,1738681853334,-500.0,9.749e-05,2]
[351642011,1738681853343,-500.0,9.749e-05,2]
[351642012,1738681853352,-500.0,9.749e-05,2]
[351642013,1738681853361,-500.0,9.749e-05,2]
[351642014,1738681853371,-500.0,9.749e-05,2]
[351642015,1738681853382,-500.0,9.749e-05,2]
[351642016,1738681853393,-192.85,9.749e-05,2]
[351642017,1738681853403,-500.0,9.749e-05,2]
[351642018,1738681853413,-500.0,9.749e-05,2]
[351642019,1738681853422,-500.0,9.749e-05,2]
[351642020,1738681853434,-500.0,9.749e-05,2]
[351642021,1738681853443,-500.0,9.749e-05,2]
[351642022,1738681853458,-500.0,9.749e-05,2]
[351642023,1738681853468,-500.0,9.749e-05,2]
[351642024,1738681853478,-529.23,9.749e-05,2]
[351642025,1738681853488,-500.0,9.749e-05,2]
[351642026,1738681853498,-500.0,9.749e-05,2]
[351642027,1738681853507,-500.0,9.749e-05,2]
[351642028,1738681853516,-500.0,9.749e-05,2]
[351642029,1738681853525,-500.0,9.749e-05,2]
[351642030,1738681853535,-518.64871375,9.749e-05,2]
[351642031,1738681853544,-500.0,9.749e-05,2]
[351642032,1738681853555,-500.0,9.749e-05,2]
[351642033,1738681853564,-500.0,9.749e-05,2]
[351642034,1738681853574,-500.0,9.749e-05,2]
[351642035,1738681853583,-500.0,9.749e-05,2]
[351642036,1738681853591,-500.0,9.749e-05,2]
[351642037,1738681853600,-500.0,9.749e-05,2]
[351642038,1738681853609,-500.0,9.749e-05,2]
[351642039,1738681853618,-500.0,9.749e-05,2]
[351642040,1738681853628,-594.7797389,9.749e-05,2]
[351642041,1738681853637,-500.0,9.749e-05,2]
[351642042,1738681853646,-500.0,9.749e-05,2]
[351642043,1738681853656,-500.0,9.749e-05,2]
[351642044,1738681853665,-500.0,9.749e-05,2]
[351642045,1738681853675,-500.0,9.749e-05,2]
[351642046,1738681853685,-500.0,9.749e-05,2]
[351642047,1738681853695,-500.0,9.749e-05,2]
[351642048,1738681853708,-500.0,9.749e-05,2]
[351642049,1738681853718,-498.26117939,9.749e-05,2]
[351642050,1738681853728,-500.0,9.749e-05,2]
[351642051,1738681853747,-500.0,9.749e-05,2]
[351642052,1738681853760,-500.0,9.749e-05,2]
[351642053,1738681853771,-500.0,9.749e-05,2]
[351642054,1738681853780,-500.0,9.749e-05,2]
[351642055,1738681853790,-500.0,9.749e-05,2]
[351642056,1738681853800,-501.32,9.749e-05,2]
[351642057,1738681853810,-177.61422033,9.749e-05,2]
[351642058,1738681853818,-500.0,9.749e-05,2]
[351642059,1738681853827,-500.0,9.749e-05,2]
[351642060,1738681853837,-500.0,9.749e-05,2]
[351642061,1738681853846,-500.0,9.749e-05,2]
[351642062,1738681853856,-500.0,9.749e-05,2]
[351642063,1738681853865,-500.0,9.749e-05,2]
[351642064,1738681853875,-500.0,9.749e-05,2]
[351642065,1738681853884,-626.24,9.749e-05,2]
[351642066,1738681853894,-193.02,9.749e-05,2]
[351642067,1738681853912,-240.72,9.749e-05,2]
[351642068,1738681853922,-500.0,9.749e-05,2]
[351642069,1738681853932,-500.0,9.749e-05,2]
[351642070,1738681853942,-500.0,9.749e-05,2]
[351642071,1738681853954,-500.0,9.749e-05,2]
[351642072,1738681853965,-500.0,9.749e-05,2]
[351642073,1738681853975,-500.0,9.749e-05,2]
[351642074,1738681853984,-500.0,9.749e-05,2]
[351642075,1738681853993,-608.73086186,9.749e-05,2]
[351642076,1738681854003,-500.0,9.749e-05,2]
[351642077,1738681854013,-500.0,9.749e-05,2]
[351642078,1738681854023,-500.0,9.749e-05,2]
[351642079,1738681854033,-500.0,9.749e-05,2]
[351642080,1738681854041,-500.0,9.749e-05,2]
[351642081,1738681854051,-500.0,9.749e-05,2]
[351642082,1738681854061,-635.5,9.749e-05,2]
[351642083,1738681854071,-500.0,9.749e-05,2]
[351642084,1738681854081,-500.0,9.749e-05,2]
[351642085,1738681854091,-500.0,9.749e-05,2]
[351642086,1738681854100,-500.0,9.749e-05,2]
[351642087,1738681854110,-500.0,9.749e-05,2]
[351642088,1738681854120,-500.0,9.749e-05,2]
[351642089,1738681854130,-500.0,9.749e-05,2]
[351642090,1738681854140,-500.0,9.749e-05,2]
[351642091,1738681854149,-500.0,9.749e-05,2]
[351642092,1738681854158,-500.0,9.749e-05,2]
[351642093,1738681854167,-500.0,9.749e-05,2]
[351642094,1738681854176,-500.0,9.749e-05,2]
[351642095,1738681854185,-500.0,9.749e-05,2]
[351642096,1738681854194,-500.0,9.749e-05,2]
[351642097,1738681854210,-217.06,9.749e-05,2]
[351642098,1738681854220,-310.42,9.749e-05,2]
[351642099,1738681854230,-500.0,9.749e-05,2]
[351642100,1738681854239,-500.0,9.749e-05,2]
[351642101,1738681854249,-500.0,9.749e-05,2]
[351642102,1738681854258,-165.51,9.749e-05,2]
[351642103,1738681854268,-466.1,9.749e-05,2]
[351642104,1738681854278,-500.0,9.749e-05,2]
[351642105,1738681854288,-1243.5,9.749e-05,2]
[351642106,1738681854298,-500.0,9.749e-05,2]
[351642107,1738681854476,-490.0,9.749e-05,2]
[351642108,1738681854501,-500.0,9.749e-05,2]
[351642109,1738681854512,-500.0,9.749e-05,2]
[351642110,1738681854523,-500.0,9.749e-05,2]
[351642111,1738681854533,-500.0,9.749e-05,2]
[351642112,1738681854543,-500.0,9.749e-05,2]
[351642113,1738681854554,-500.0,9.749e-05,2]
[351642114,1738681854564,-500.0,9.749e-05,2]
[351642115,1738681854574,-500.0,9.749e-05,2]
[351642116,1738681854583,-500.0,9.749e-05,2]
[351642117,1738681854593,-500.0,9.749e-05,2]
[351642118,1738681854604,-500.0,9.749e-05,2]
[351642119,1738681854614,-500.0,9.749e-05,2]
[351642120,1738681854623,-500.0,9.749e-05,2]
[351642121,1738681854633,-500.0,9.749e-05,2]
[351642122,1738681854643,-500.0,9.749e-05,2]
[351642123,1738681854653,-500.0,9.749e-05,2]
[351642124,1738681854663,-500.0,9.749e-05,2]
[351642125,1738681854672,-378.4,9.749e-05,2]
[351642126,1738681854682,-638.27764285,9.749e-05,2]
[351642127,1738681854692,-500.0,9.749e-05,2]
[351642128,1738681854708,-500.0,9.749e-05,2]
[351642129,1738681854718,-150.78,9.749e-05,2]
[351642130,1738681854728,-500.0,9.749e-05,2]
[351642131,1738681854738,-500.0,9.749e-05,2]
[351642132,1738681854749,-524.23,9.749e-05,2]
[351642133,1738681854759,-500.0,9.749e-05,2]
[351642134,1738681854770,-500.0,9.749e-05,2]
[351642135,1738681854782,-500.0,9.749e-05,2]
[351642136,1738681854791,-500.0,9.749e-05,2]
[351642137,1738681854801,-500.0,9.749e-05,2]
[351642138,1738681854811,-500.0,9.749e-05,2]
[351642139,1738681854822,-500.0,9.749e-05,2]
[351642140,1738681854832,-500.0,9.749e-05,2]
[351642141,1738681854842,-500.0,9.749e-05,2]
[351642142,1738681854853,-210.88593886,9.749e-05,2]
[351642143,1738681854862,-500.0,9.749e-05,2]
[351642144,1738681854872,-500.0,9.749e-05,2]
[351642145,1738681854882,-500.0,9.749e-05,2]
[351642146,1738681854892,-500.0,9.749e-05,2]
[351642147,1738681854903,-376.12423917,9.749e-05,2]
[351642148,1738681854912,-500.0,9.749e-05,2]
[351642149,1738681854923,-591.63,9.749e-05,2]
[351642150,1738681854932,-500.0,9.749e-05,2]
[351642151,1738681854942,-500.0,9.749e-05,2]
[351642152,1738681854957,-500.0,9.749e-05,2]
[351642153,1738681854967,-500.0,9.749e-05,2]
[351642154,1738681854977,-182.03,9.749e-05,2]
[351642155,1738681854986,-500.0,9.749e-05,2]
[351642156,1738681854996,-500.0,9.749e-05,2]
[351642157,1738681855006,-646.6,9.749e-05,2]
[351642158,1738681855015,-500.0,9.749e-05,2]
[351642159,1738681855026,-500.0,9.749e-05,2]
[351642160,1738681855037,-500.0,9.749e-05,2]
[351642161,1738681855047,-500.0,9.749e-05,2]
[351642162,1738681855057,-330.77,9.749e-05,2]
[351642163,1738681855068,-500.0,9.749e-05,2]
[351642164,1738681855077,-500.0,9.749e-05,2]
[351642165,1738681855087,-500.0,9.749e-05,2]
[351642166,1738681855098,-500.0,9.749e-05,2]
[351642167,1738681855117,-500.0,9.749e-05,2]
[351642168,1738681855136,-398.74441162,9.749e-05,2]
[351642169,1738681855146,-500.0,9.749e-05,2]
[351642170,1738681855156,-500.0,9.749e-05,2]
[351642171,1738681855166,-500.0,9.749e-05,2]
[351642172,1738681855175,-500.0,9.749e-05,2]
[351642173,1738681855186,-500.0,9.749e-05,2]
[351642174,1738681855197,-500.0,9.749e-05,2]
[351642175,1738681855212,-500.0,9.749e-05,2]
[351642176,1738681855222,-500.0,9.749e-05,2]
[351642177,1738681855232,-500.0,9.749e-05,2]
[351642178,1738681855242,-500.0,9.749e-05,2]
[351642179,1738681855252,-231.65576466,9.749e-05,2]
[351642180,1738681855262,-500.0,9.749e-05,2]
[351642181,1738681855273,-500.0,9.749e-05,2]
[351642182,1738681855283,-500.0,9.749e-05,2]
[351642183,1738681855293,-500.0,9.749e-05,2]
[351642184,1738681855303,-500.0,9.749e-05,2]
[351642185,1738681855314,-500.0,9.749e-05,2]
[351642186,1738681855323,-296.31872774,9.749e-05,2]
[351642187,1738681855333,-500.0,9.749e-05,2]
[351642188,1738681855343,-500.0,9.749e-05,2]
[351642189,1738681855353,-500.0,9.749e-05,2]
[351642190,1738681855363,-500.0,9.749e-05,2]
[351642191,1738681855374,-500.0,9.749e-05,2]
[351642192,1738681855386,-500.0,9.749e-05,2]
[351642193,1738681855396,-500.0,9.749e-05,2]
[351642194,1738681855406,-500.0,9.749e-05,2]
[351642195,1738681855419,-500.0,9.749e-05,2]
[351642196,1738681855436,-500.0,9.749e-05,2]
[351642197,1738681855447,-500.0,9.749e-05,2]
[351642198,1738681855461,-895.84,9.749e-05,2]
[351642199,1738681855471,-500.0,9.749e-05,2]
[351642200,1738681855481,-500.0,9.749e-05,2]
[351642201,1738681855502,-500.0,9.749e-05,2]
[351642202,1738681855512,-500.0,9.749e-05,2]
[351642203,1738681855523,-532.38,9.749e-05,2]
[351642204,1738681855534,-555.35,9.749e-05,2]
[351642205,1738681855544,-184.17,9.749e-05,2]
[351642206,1738681855556,-949.78,9.749e-05,2]
[351642207,1738681855567,-165.46,9.749e-05,2]
[351642208,1738681855578,-365.11,9.749e-05,2]
[351642209,1738681855588,-500.0,9.749e-05,2]
[351642210,1738681855599,-500.0,9.749e-05,2]
[351642211,1738681855612,-500.0,9.749e-05,2]
[351642212,1738681855622,-602.27,9.749e-05,2]
[351642213,1738681855635,-500.0,9.749e-05,2]
[351642214,1738681855645,-500.0,9.749e-05,2]
[351642215,1738681855655,-500.0,9.749e-05,2]
[351642216,1738681855667,-500.0,9.749e-05,2]
[351642217,1738681855678,-772.59,9.749e-05,2]
[351642218,1738681855688,-500.0,9.749e-05,2]
[351642219,1738681855698,-199.38152297,9.749e-05,2]
[351642220,1738681855712,-500.0,9.749e-05,2]
[351642221,1738681855723,-500.0,9.749e-05,2]
[351642222,1738681855732,-500.0,9.749e-05,2]
[351642223,1738681855742,-500.0,9.749e-05,2]
[351642224,1738681855752,-500.0,9.749e-05,2]
[351642225,1738681855762,-275.41,9.749e-05,2]
[351642226,1738681855772,-500.0,9.749e-05,2]
[351642227,1738681855782,-611.69,9.749e-05,2]
[351642228,1738681855792,-500.0,9.749e-05,2]
[351642229,1738681855803,-500.0,9.749e-05,2]
[351642230,1738681855812,-500.0,9.749e-05,2]
[351642231,1738681855822,-155.16428159,9.749e-05,2]
[351642232,1738681855832,-511.12985025,9.749e-05,2]
[351642233,1738681855843,-152.43242798,9.749e-05,2]
[351642234,1738681855852,-500.0,9.749e-05,2]
[351642235,1738681855864,-732.68,9.749e-05,2]
[351642236,1738681855876,-500.0,9.749e-05,2]
[351642237,1738681855887,-500.0,9.749e-05,2]
[351642238,1738681855897,-533.38,9.749e-05,2]
[351642239,1738681855907,-500.0,9.749e-05,2]
[351642240,1738681855916,-500.0,9.749e-05,2]
[351642241,1738681855926,-500.0,9.749e-05,2]
[351642242,1738681855936,-706.05,9.749e-05,2]
[351642243,1738681855946,-500.0,9.749e-05,2]
[351642244,1738681855959,-500.0,9.749e-05,2]
[351642245,1738681855969,-500.0,9.749e-05,2]
[351642246,1738681855980,-500.0,9.749e-05,2]
[351642247,1738681855989,-203.15,9.749e-05,2]
[351642248,1738681855999,-500.0,9.749e-05,2]
[351642249,1738681856009,-500.0,9.749e-05,2]
[351642250,1738681856020,-500.0,9.749e-05,2]
[351642251,1738681856029,-500.0,9.749e-05,2]
[351642252,1738681856040,-500.0,9.749e-05,2]
[351642253,1738681856051,-500.0,9.749e-05,2]
[351642254,1738681856061,-500.0,9.749e-05,2]
[351642255,1738681856071,-559.28,9.749e-05,2]
[351642256,1738681856080,-758.53,9.749e-05,2]
[351642257,1738681856090,-500.0,9.749e-05,2]
[351642258,1738681856100,-500.0,9.749e-05,2]
[351642259,1738681856110,-522.57,9.749e-05,2]
[351642260,1738681856121,-500.0,9.749e-05,2]
[351642261,1738681856131,-500.0,9.749e-05,2]
[351642262,1738681856141,-500.0,9.749e-05,2]
[351642263,1738681856151,-500.0,9.749e-05,2]
[351642264,1738681856161,-645.09,9.749e-05,2]
[351642265,1738681856171,-500.0,9.749e-05,2]
[351642266,1738681856182,-500.0,9.749e-05,2]
[351642267,1738681856191,-500.0,9.749e-05,2]
[351642268,1738681856204,-500.0,9.749e-05,2]
[351642269,1738681856215,-620.64,9.749e-05,2]
[351642270,1738681856224,-544.83539212,9.749e-05,2]
[351642271,1738681856235,-500.0,9.749e-05,2]
[351642272,1738681856244,-500.0,9.749e-05,2]
[351642273,1738681856254,-500.0,9.749e-05,2]
[351642274,1738681856264,-809.96,9.749e-05,2]
[351642275,1738681856274,-2900.0,9.78e-05,2]
[351642276,1738681856284,-484.2709885,9.8e-05,2]
[351642277,1738681856295,-401.057,9.849e-05,2]
[351642278,1738681856305,-151.786,9.86e-05,2]
[351642279,1738681856315,-1272.0,9.86e-05,2]
[351642280,1738681856326,-2023.0,9.86e-05,2]
[351642281,1738681856335,-568.0,9.86e-05,2]
[351642282,1738681856346,-3911.0,9.86e-05,2]
[351642283,1738681856355,-150.0,9.86e-05,2]
[351642284,1738681856366,-150.0,9.868e-05,2]
[351642285,1738681856379,-672.6,9.885e-05,2]
[351642286,1738681856389,-1703.6,9.885e-05,2]
[351642287,1738681856399,-500.0,9.885e-05,2]
[351642288,1738681856410,-271.26568103,9.885e-05,2]
[351642289,1738681856420,-323.862904,9.885e-05,2]
[351642290,1738681856430,-500.0,9.885e-05,2]
[351642291,1738681856440,-500.0,9.885e-05,2]
[351642292,1738681856452,-500.0,9.885e-05,2]
[351642293,1738681856462,-339.60882,9.885e-05,2]
[351642294,1738681856472,-568.96,9.885e-05,2]
[351642295,1738681856483,-500.0,9.885e-05,2]
[351642296,1738681856494,-500.0,9.885e-05,2]
[351642297,1738681856503,-500.0,9.885e-05,2]
[351642298,1738681856514,-943.58,9.885e-05,2]
[351642299,1738681856524,-500.0,9.885e-05,2]
[351642300,1738681856534,-675.92,9.885e-05,2]
[351642301,1738681856544,-605.13,9.885e-05,2]
[351642302,1738681856553,-645.13,9.885e-05,2]
[351642303,1738681856564,-500.0,9.885e-05,2]
[351642304,1738681856573,-500.0,9.885e-05,2]
[351642305,1738681856583,-500.0,9.885e-05,2]
[351642306,1738681856592,-526.32,9.885e-05,2]
[351642307,1738681856602,-500.0,9.885e-05,2]
[351642308,1738681856613,-500.0,9.885e-05,2]
[351642309,1738681856622,-500.0,9.885e-05,2]
[351642310,1738681856631,-536.87,9.885e-05,2]
[351642311,1738681856641,-2473.72,9.885e-05,2]
[351642312,1738681856652,-500.0,9.885e-05,2]
[351642313,1738681856662,-940.54,9.885e-05,2]